bitfinex-derivatives/quotes_BTCF0:USTF0_20251119
["timestamp","ask_amount","ask_price","bid_price","bid_amount"]
[1763562120974,0.17818024,91302.0,91301.0,0.00016432]
[1763562121176,0.1527691,91292.0,91291.0,0.1058]
[1763562121374,0.04314,91292.0,91291.0,0.1058]
[1763562122179,0.04361,91291.0,91290.0,0.36153267]
[1763562122370,0.04361,91291.0,91290.0,0.00073267]
[1763562123074,0.04361,91291.0,91290.0,0.36153267]
[1763562127087,0.01387,91296.0,91295.0,0.1096254]
[1763562127294,0.04552,91291.0,91290.0,0.36153267]
[1763562129298,0.023,91291.0,91290.0,0.36153267]
[1763562129499,0.04552,91291.0,91290.0,0.36153267]
[1763562130399,0.01387,91296.0,91290.0,0.36153267]
[1763562130700,0.03687,91296.0,91291.0,0.10584]
[1763562130892,0.05939,91296.0,91295.0,0.1096254]
[1763562131094,0.01387,91296.0,91292.0,0.109629]
[1763562131301,0.04552,91293.0,91292.0,0.109629]
[1763562132104,0.04552,91293.0,91290.0,0.36153267]
[1763562132105,0.04552,91291.0,91290.0,0.36153267]
[1763562135004,0.05939,91296.0,91290.0,0.36153267]
[1763562136005,0.05939,91296.0,91295.0,0.1096254]
[1763562136799,0.00219803,91300.0,91299.0,0.1096206]
[1763562136999,0.00016432,91301.0,91300.0,0.00073267]
[1763562138598,0.00016432,91301.0,91300.0,0.00173267]
[1763562141400,2e-08,91301.0,91300.0,0.00173267]
[1763562141698,2e-08,91301.0,91300.0,0.40173267]
[1763562142295,2e-08,91301.0,91300.0,0.40073267]
[1763562142497,2e-08,91301.0,91300.0,0.40173267]
[1763562143504,0.04552002,91301.0,91300.0,0.00173267]
[1763562143804,0.04552002,91301.0,91300.0,0.10857267]
[1763562144405,0.04552002,91301.0,91300.0,0.10657267]
[1763562144603,0.04552002,91301.0,91300.0,0.10857267]
[1763562145103,0.04552002,91301.0,91300.0,0.10757267]
[1763562146204,0.04552002,91301.0,91300.0,0.10657267]
[1763562146603,0.02300002,91301.0,91300.0,0.10657267]
[1763562147308,2e-08,91301.0,91300.0,0.10657267]
[1763562149305,2e-08,91301.0,91300.0,0.10757267]
[1763562149807,2e-08,91301.0,91300.0,0.10857267]
[1763562150912,2e-08,91301.0,91300.0,0.1870967]
[1763562151503,2e-08,91301.0,91300.0,0.10857267]
[1763562151904,2e-08,91301.0,91300.0,0.18720227]
[1763562152303,2e-08,91301.0,91300.0,0.10757267]
[1763562152613,2e-08,91301.0,91300.0,0.10857267]
[1763562153114,2e-08,91301.0,91300.0,0.10757267]
[1763562153306,2e-08,91301.0,91300.0,0.10857267]
[1763562154404,2e-08,91301.0,91300.0,0.10853267]
[1763562160210,2e-08,91301.0,91300.0,0.00273267]
[1763562160414,0.04543002,91301.0,91300.0,0.10853267]
[1763562160902,0.02258002,91301.0,91300.0,0.10853267]
[1763562161316,0.04543002,91301.0,91300.0,0.10853267]
[1763562162814,0.02258002,91301.0,91300.0,0.10853267]
[1763562163118,2e-08,91301.0,91300.0,0.10853267]
[1763562165006,2e-08,91301.0,91300.0,0.18716227]
[1763562165206,2e-08,91301.0,91300.0,0.10853267]
[1763562165919,2e-08,91301.0,91300.0,0.21806109]
[1763562168122,2e-08,91301.0,91300.0,0.21906109]
[1763562168321,2e-08,91301.0,91300.0,0.57886109]
[1763562168515,2e-08,91301.0,91300.0,0.58086109]
[1763562169323,2e-08,91301.0,91300.0,0.57986109]
[1763562172116,2e-08,91301.0,91300.0,0.57686109]
[1763562172312,2e-08,91301.0,91300.0,0.57986109]
[1763562172914,2e-08,91301.0,91300.0,0.57886109]
[1763562173115,2e-08,91301.0,91300.0,0.57986109]
[1763562173310,2e-08,91301.0,91300.0,0.47406109]
[1763562173527,2e-08,91301.0,91300.0,0.57986109]
[1763562173718,2e-08,91301.0,91300.0,0.57886109]
[1763562174023,0.00027375,91326.0,91305.0,0.5480619]
[1763562174217,0.00027375,91326.0,91325.0,0.8311895]
[1763562174418,0.00027375,91326.0,91325.0,0.9369895]
[1763562175325,0.02285375,91326.0,91325.0,0.9369895]
[1763562175528,0.00027375,91326.0,91325.0,0.9369895]
[1763562176521,0.02285375,91326.0,91325.0,0.9369895]
[1763562176722,0.02285375,91326.0,91325.0,0.9480325]
[1763562177821,0.00027375,91326.0,91325.0,0.9480325]
[1763562179531,5e-08,91326.0,91325.0,0.9480325]
[1763562180420,5e-08,91326.0,91325.0,0.9490325]
[1763562181534,5e-08,91326.0,91325.0,0.9480325]
[1763562181734,5e-08,91326.0,91325.0,0.9490325]
[1763562182047,5e-08,91326.0,91325.0,0.9500325]
[1763562182233,7e-08,91335.0,91334.0,0.1095786]
[1763562182429,7e-08,91335.0,91334.0,0.5761386]
[1763562183433,7e-08,91335.0,91334.0,0.68562625]
[1763562183839,0.05566,91360.0,91359.0,0.1140486]
[1763562184037,0.05566,91360.0,91359.0,0.9414086]
[1763562184938,0.05785803,91360.0,91359.0,0.9414086]
[1763562185333,0.05785803,91360.0,91359.0,0.9369086]
[1763562185632,0.05785803,91360.0,91359.0,0.9391586]
[1763562185825,0.05785803,91360.0,91359.0,0.9414086]
[1763562186831,0.03435,91360.0,91359.0,0.9414086]
[1763562187334,0.05566,91360.0,91359.0,0.9414086]
[1763562187840,0.05785803,91360.0,91359.0,0.9414086]
[1763562189243,0.05566,91360.0,91359.0,0.9414086]
[1763562189438,0.01302,91360.0,91359.0,0.9414086]
[1763562189633,0.00027363,91366.0,91365.0,0.1140415]
[1763562189634,0.04291363,91366.0,91365.0,0.1140415]
[1763562189829,0.04291363,91366.0,91365.0,0.2198015]
[1763562191241,0.04391363,91366.0,91365.0,0.2198015]
[1763562191737,0.04264,91361.0,91360.0,0.00073267]
[1763562191939,0.04264,91361.0,91360.0,0.21604017]
[1763562193032,0.04264,91361.0,91360.0,0.00073267]
[1763562193233,0.16792543,91360.0,91359.0,0.32653267]
[1763562194034,0.56792543,91360.0,91359.0,0.29153267]
[1763562194442,0.152191,91357.0,91356.0,0.1095513]
[1763562194644,0.04264,91357.0,91356.0,0.1095513]
[1763562195934,0.04264,91357.0,91356.0,0.1524313]
[1763562197137,0.04264,91357.0,91356.0,0.1309313]
[1763562197344,0.04264,91357.0,91356.0,0.1095513]
[1763562198546,0.04264,91354.0,91353.0,0.3608]
[1763562199241,0.04264,91354.0,91353.0,0.38218]
[1763562199442,0.04264,91354.0,91353.0,0.40368]
[1763562199854,0.04291363,91366.0,91365.0,0.1524214]
[1763562200152,0.00027363,91366.0,91365.0,0.5132214]
[1763562201146,0.00127363,91366.0,91365.0,0.5132214]
[1763562201352,0.02260363,91366.0,91365.0,0.5132214]
[1763562201552,0.04391363,91366.0,91365.0,0.5132214]
[1763562203047,0.00127363,91366.0,91365.0,0.5132214]
[1763562204862,0.04542363,91366.0,91365.0,0.5132214]
[1763562208368,0.04442363,91366.0,91365.0,0.5132214]
[1763562209065,0.04442363,91366.0,91365.0,0.5142214]
[1763562210062,0.04442363,91366.0,91365.0,0.5132214]
[1763562210661,0.02226363,91366.0,91365.0,0.5132214]
[1763562211360,0.00027363,91366.0,91365.0,0.5132214]
[1763562214167,0.00016422,91369.0,91368.0,0.1622878]
[1763562214469,0.00016422,91369.0,91368.0,0.5230878]
[1763562214671,0.00016422,91369.0,91368.0,0.53403917]
[1763562214870,4.22e-06,91369.0,91368.0,0.53403917]
[1763562215775,4.22e-06,91369.0,91368.0,0.5230878]
[1763562216572,0.02326422,91369.0,91368.0,0.5240878]
[1763562216770,4.22e-06,91369.0,91368.0,0.4798778]
[1763562217359,4.22e-06,91369.0,91368.0,0.4788778]
[1763562220276,0.15567082,91369.0,91368.0,0.5145478]
[1763562220672,0.15567082,91369.0,91368.0,0.6202678]
[1763562221374,0.04613422,91369.0,91368.0,0.6202678]
[1763562222470,0.04613422,91369.0,91368.0,0.5145478]
[1763562228484,0.04613422,91369.0,91368.0,0.3608]
[1763562228675,0.04613422,91369.0,91365.0,0.3608]
[1763562228676,0.04613,91366.0,91365.0,0.3608]
[1763562228877,0.1556882,91351.0,91350.0,0.00016422]
[1763562229177,0.38406,91354.0,91353.0,0.04421]
[1763562229379,0.40693,91354.0,91353.0,0.04421]
[1763562229573,0.04613,91354.0,91353.0,0.04421]
[1763562230382,0.1328134,91356.0,91355.0,0.04421]
[1763562230685,0.1556834,91356.0,91355.0,0.04421]
[1763562230877,0.04613,91356.0,91355.0,0.04421]
[1763562232887,0.00219803,91360.0,91359.0,0.1537586]
[1763562234679,0.04613422,91369.0,91368.0,0.1537478]
[1763562234982,0.04613422,91369.0,91368.0,0.1666078]
[1763562235179,0.02326422,91369.0,91368.0,0.1666078]
[1763562236180,4.22e-06,91369.0,91368.0,0.1223978]
[1763562238380,4.22e-06,91369.0,91368.0,0.01286]
[1763562238687,0.1095486,91360.0,91359.0,0.1095446]
[1763562238889,0.04613,91351.0,91350.0,0.15393362]
[1763562239083,0.04613,91351.0,91350.0,0.25965362]
[1763562239492,0.04613,91351.0,91350.0,0.00016422]
[1763562239888,0.04613,91351.0,91350.0,0.02258422]
[1763562240086,0.04613,91351.0,91350.0,0.15393362]
[1763562240590,0.3608,91356.0,68895.0,0.0321796]
[1763562240591,0.04613,91334.0,91330.0,0.19850813]
[1763562240785,0.04613,91327.0,91322.0,0.07861207]
[1763562240982,0.04613,91327.0,91304.0,0.04421]
[1763562240983,0.1557434,91305.0,91304.0,0.04421]
[1763562241187,0.1328914,91290.0,91288.0,0.01286]
[1763562241389,0.1557614,91290.0,91289.0,0.04421]
[1763562241588,0.00219803,91290.0,91289.0,0.1538426]
[1763562242090,0.00119803,91290.0,91289.0,0.1538426]
[1763562242486,0.04457803,91290.0,91289.0,0.04421]
[1763562243190,0.04338,91287.0,91286.0,0.00040924]
[1763562243383,0.04338,91287.0,91286.0,0.04349924]
[1763562243792,0.04238,91287.0,91286.0,0.04349924]
[1763562244388,0.04138,91287.0,91286.0,0.04449924]
[1763562245186,0.04138,91287.0,91286.0,0.04549924]
[1763562246284,0.01997,91287.0,91286.0,0.04549924]
[1763562246484,0.00119803,91290.0,91289.0,0.04309]
[1763562246687,0.02316803,91290.0,91289.0,0.04309]
[1763562247389,0.04457803,91290.0,91289.0,0.04309]
[1763562247693,0.04457803,91290.0,91289.0,0.04409]
[1763562247889,0.04457803,91290.0,91289.0,0.04509]
[1763562250199,0.00119803,91290.0,91289.0,0.04509]
[1763562251194,0.3608,91294.0,91293.0,0.04309]
[1763562251397,0.3608,91294.0,91293.0,0.1527083]
[1763562251999,0.5137969,91294.0,91293.0,0.04309]
[1763562252399,0.40418,91294.0,91293.0,0.04309]
[1763562253096,0.04338,91292.0,91291.0,0.10962]
[1763562253298,0.04238,91291.0,91290.0,0.001]
[1763562253698,0.04238,91291.0,91280.0,0.01330431]
[1763562253699,0.1530053,91287.0,91280.0,0.00016431]
[1763562253894,0.04338,91287.0,91285.0,0.1096275]
[1763562254294,0.04238,91287.0,91285.0,0.1096275]
[1763562254593,0.01276,91288.0,91280.0,0.00016431]
[1763562254594,0.1530125,91281.0,91280.0,0.00016431]
[1763562254793,0.01276,91288.0,91254.0,0.04309]
[1763562254794,0.02197,91255.0,91254.0,0.04309]
[1763562255099,0.02097,91255.0,91254.0,0.04309]
[1763562255396,0.40418,91263.0,91262.0,0.04309]
[1763562255589,0.04338,91252.0,91251.0,0.05623]
[1763562255989,0.04338,91252.0,91251.0,0.04309]
[1763562256302,0.3608,91253.0,91252.0,0.04309]
[1763562256796,0.40318,91253.0,91252.0,0.04309]
[1763562257196,0.04338,91247.0,91242.0,0.01330431]
[1763562258100,0.02197,91247.0,91246.0,0.04336399]
[1763562258294,0.04338,91247.0,91246.0,0.04336399]
[1763562258486,0.0019307,91250.0,91249.0,0.04309]
[1763562260401,0.0239007,91250.0,91249.0,0.04309]
[1763562260595,0.0019307,91250.0,91249.0,0.152761]
[1763562260896,0.0453107,91250.0,91246.0,0.00027399]
[1763562261197,0.470471,91249.0,91225.0,0.04317121]
[1763562261402,0.0239007,91230.0,91229.0,0.04309]
[1763562261592,0.00202956,91230.0,91229.0,0.04309]
[1763562262297,0.3608,91244.0,91227.0,0.4704966]
[1763562262298,0.00016441,91239.0,91238.0,0.04309]
[1763562263289,0.00022997,91239.0,91238.0,0.04309]
[1763562264004,0.3608,91251.0,91250.0,0.05623]
[1763562264304,0.3608,91251.0,91250.0,0.05842803]
[1763562264592,0.3608,91262.0,91261.0,0.04374]
[1763562266599,0.36096441,91271.0,91270.0,0.05735]
[1763562266899,0.36096441,91271.0,91270.0,0.05954803]
[1763562268311,0.40439441,91271.0,91246.0,0.3608]
[1763562268499,0.022,91238.0,91237.0,0.04371]
[1763562268800,0.04343,91238.0,91237.0,0.04371]
[1763562270502,0.3608,91242.0,91241.0,0.04371]
[1763562271897,0.3608,91242.0,91240.0,0.00219803]
[1763562271898,0.00016441,91247.0,91246.0,0.04289]
[1763562273387,0.00116441,91247.0,91246.0,0.04289]
[1763562273589,0.02490441,91247.0,91246.0,0.04289]
[1763562274293,0.00216441,91247.0,91246.0,0.04289]
[1763562274692,0.155335,91229.0,91221.0,0.3608]
[1763562274896,0.155335,91229.0,91228.0,0.02215441]
[1763562275099,0.155335,91229.0,91228.0,0.04400441]
[1763562275397,0.516135,91229.0,91228.0,0.00016441]
[1763562275602,0.04564,91226.0,91223.0,0.01345]
[1763562275898,0.04564,91226.0,91225.0,0.02207121]
[1763562276101,0.04564,91226.0,91225.0,0.04392121]
[1763562277003,0.04564,91226.0,91225.0,8.121e-05]
[1763562277698,0.04564,91213.0,91212.0,0.05729]
[1763562278003,0.02274,91213.0,91212.0,0.05729]
[1763562278602,0.1324446,91221.0,91212.0,0.01345]
[1763562278901,0.00016441,91222.0,91221.0,0.04384]
[1763562279201,0.00024562,91222.0,91221.0,0.04384]
[1763562279904,0.00024562,91222.0,91221.0,0.40464]
[1763562280503,0.3608,91233.0,91232.0,0.1535314]
[1763562280804,0.5161169,91245.0,91244.0,0.04384]
[1763562281000,0.54158097,91245.0,91244.0,0.04384]
[1763562281407,0.38626407,91245.0,91244.0,0.04384]
[1763562281715,0.3608,91245.0,91244.0,0.04384]
[1763562282005,0.04580441,91254.0,91253.0,0.04384]
[1763562282196,0.0712997,91254.0,91253.0,0.04384]
[1763562282394,0.0483997,91254.0,91253.0,0.04384]
[1763562282597,0.0256597,91254.0,91253.0,0.04384]
[1763562282795,0.00016441,91254.0,91253.0,0.04384]
[1763562283204,0.10982931,91254.0,91253.0,0.04384]
[1763562283504,0.11182931,91254.0,91253.0,0.04384]
[1763562283710,0.11382931,91254.0,91253.0,0.04384]
[1763562283902,0.04564,91251.0,91250.0,0.00219803]
[1763562284110,0.07108004,91251.0,91250.0,0.00219803]
[1763562284607,0.1096799,91242.0,91241.0,0.04384]
[1763562285001,0.13513906,91242.0,91241.0,0.04384]
[1763562285802,0.15787906,91242.0,91241.0,0.04384]
[1763562286002,0.18077906,91242.0,91241.0,0.04384]
[1763562286204,0.1553266,91236.0,91230.0,0.3608]
[1763562286398,0.18078979,91236.0,91230.0,0.36299803]
[1763562286609,0.13514979,91236.0,91235.0,0.04400441]
[1763562287005,0.18078979,91236.0,91235.0,0.04400441]
[1763562287409,0.18078979,91236.0,91210.0,0.04384]
[1763562287410,0.1097167,91211.0,91210.0,0.04384]
[1763562287605,0.1097108,91216.0,91215.0,0.04384]
[1763562287812,0.18080617,91216.0,91215.0,0.04384]
[1763562288005,0.02545537,91216.0,91215.0,0.04384]
[1763562288204,0.40000153,91230.0,91215.0,0.04384]
[1763562288405,0.1324441,91222.0,91221.0,0.04384]
[1763562288605,0.18079197,91222.0,91221.0,0.04384]
[1763562288813,0.07108787,91222.0,91221.0,0.04384]
[1763562289709,0.07108787,91222.0,91211.0,0.1097166]
[1763562289710,0.0229,91215.0,91194.0,0.3608]
[1763562289911,0.1553615,91207.0,91206.0,0.02226411]
[1763562290111,0.18079949,91207.0,91206.0,0.02226411]
[1763562290410,0.1553615,91207.0,91206.0,0.02226411]
[1763562290713,0.18078771,91207.0,91206.0,0.02226411]
[1763562290909,0.18078771,91207.0,91206.0,0.00027411]
[1763562291208,0.1553759,91195.0,91194.0,0.40464]
[1763562291514,0.1324759,91195.0,91194.0,0.40464]
[1763562291813,0.1324759,91195.0,91194.0,0.04384]
[1763562292401,0.1097359,91195.0,91194.0,0.04384]
[1763562292709,0.1314705,91200.0,91199.0,0.04384]
[1763562293012,0.36096441,91204.0,91203.0,0.04384]
[1763562293208,0.00016441,91204.0,91203.0,0.04384]
[1763562294014,0.02290441,91204.0,91203.0,0.04384]
[1763562294414,0.00016441,91204.0,91203.0,0.04384]
[1763562295608,0.13262951,91204.0,91203.0,0.04384]
[1763562295816,0.00016441,91204.0,91203.0,0.04384]
[1763562299216,0.04580441,91204.0,91203.0,0.04384]
[1763562300313,0.04580441,91204.0,91190.0,0.01345]
[1763562300314,0.1553891,91184.0,91183.0,0.40464]
[1763562300513,0.1553891,91184.0,91182.0,9.565e-05]
[1763562300514,0.04564,91183.0,91182.0,9.565e-05]
[1763562300717,0.04564,91183.0,91182.0,0.04393565]
[1763562300909,0.1324698,91201.0,91200.0,0.04384]
[1763562301106,0.1553698,91201.0,91200.0,0.0445727]
[1763562301315,0.1553903,91183.0,91182.0,0.02208565]
[1763562301512,0.04464,91183.0,91182.0,0.04500565]
[1763562301816,0.02192,91186.0,91185.0,0.04492]
[1763562302006,0.00219799,91190.0,91189.0,0.04492]
[1763562302206,0.3608,91202.0,91201.0,0.05825]
[1763562302406,0.3608,91213.0,91203.0,0.04492]
[1763562302618,0.11191619,91210.0,91203.0,0.04492]
[1763562302824,0.02208441,91204.0,91203.0,0.04492]
[1763562303120,0.00016441,91204.0,91203.0,0.04492]
[1763562303516,0.04460441,91204.0,91203.0,0.04492]
[1763562304213,0.04344,91202.0,91201.0,0.01333]
[1763562304521,0.04344,91202.0,91201.0,0.05825]
[1763562304713,0.1316463,91203.0,91202.0,0.04492]
[1763562304913,0.04344,91203.0,91202.0,0.04492]
[1763562305212,0.36196441,91204.0,91201.0,0.01333]
[1763562305416,0.02308441,91204.0,91203.0,0.04492]
[1763562305618,0.13280941,91204.0,91203.0,0.04492]
[1763562305830,0.00116441,91204.0,91203.0,0.04492]
[1763562306124,0.00116441,91204.0,91203.0,0.1546463]
[1763562306621,0.04344,91202.0,91201.0,0.01333]
[1763562306822,0.04344,91202.0,91201.0,0.03533]
[1763562307007,0.04344,91202.0,91201.0,0.05825]
[1763562307213,0.1531687,91201.0,91200.0,0.0007327]
[1763562307408,0.1531807,91191.0,91190.0,0.0589827]
[1763562308306,0.04344,91191.0,91190.0,0.0589827]
[1763562308711,0.1531717,91199.0,91198.0,0.022]
[1763562309014,0.1531773,91194.0,91193.0,0.04492]
[1763562309423,0.3608,91195.0,91194.0,0.04492]
[1763562309613,0.001,91202.0,91201.0,0.05825]
[1763562309922,0.36096441,91204.0,91203.0,0.04492]
[1763562310614,0.00016441,91204.0,91203.0,0.40572]
[1763562311719,0.04360441,91204.0,91203.0,0.3608]
[1763562311917,0.04360441,91204.0,91200.0,0.0007327]
[1763562311918,0.04344,91201.0,91200.0,0.0007327]
[1763562312118,0.1531797,91192.0,91191.0,0.04492]
[1763562312319,0.1531797,91192.0,91179.0,0.01333]
[1763562312320,0.04344,91183.0,91173.0,0.3608]
[1763562312625,0.04344,91183.0,91180.0,0.0007327]
[1763562312924,0.3608,91186.0,91185.0,0.04492]
[1763562313125,0.00219799,91190.0,91189.0,0.04492]
[1763562313342,0.02411799,91190.0,91189.0,0.04492]
[1763562313513,0.00219799,91190.0,91189.0,0.04492]
[1763562313912,0.02411799,91190.0,91189.0,0.04492]
[1763562314320,0.00319799,91190.0,91189.0,0.04492]
[1763562314823,0.15637989,91190.0,91189.0,0.04492]
[1763562315217,0.04663799,91190.0,91189.0,0.04492]
[1763562315517,0.00319799,91190.0,91189.0,0.04492]
[1763562315716,0.00219799,91190.0,91189.0,0.04492]
[1763562315913,0.02192,91183.0,91182.0,0.04501565]
[1763562316116,0.1097479,91185.0,91184.0,0.04492]
[1763562316722,0.3608,91190.0,91189.0,0.04492]
[1763562316920,0.1531903,91183.0,91182.0,9.565e-05]
[1763562317125,0.1531903,91183.0,91182.0,0.02209565]
[1763562317524,0.1531903,91183.0,91182.0,9.565e-05]
[1763562317827,0.1531903,91183.0,91182.0,0.02209565]
[1763562318023,0.04344,91183.0,91182.0,0.02209565]
[1763562318219,0.1097503,91183.0,91182.0,0.04501565]
[1763562318422,0.1097503,91183.0,91170.0,0.1097649]
[1763562318423,0.1532096,91167.0,91162.0,0.3608]
[1763562318617,0.04344,91167.0,91162.0,0.3608]
[1763562318820,0.04344,91167.0,91154.0,0.1097844]
[1763562318821,0.04344,91167.0,91166.0,0.04519423]
[1763562319122,0.3608,91169.0,91168.0,0.04492]
[1763562319317,0.00219799,91170.0,91169.0,0.04492]
[1763562319526,0.00228215,91170.0,91169.0,0.04492]
[1763562319921,0.04572215,91170.0,91169.0,0.04492]
[1763562320122,0.04572215,91170.0,91169.0,0.022]
[1763562320422,0.00228215,91170.0,91169.0,0.04492]
[1763562320620,0.02420215,91170.0,91169.0,0.04492]
[1763562321026,0.04344,91167.0,91166.0,0.00027423]
[1763562321323,0.02192,91156.0,91155.0,0.04492]
[1763562321527,0.00219799,91160.0,91159.0,0.04492]
[1763562322626,8.416e-05,91170.0,91169.0,0.04492]
[1763562322831,0.00228215,91170.0,91169.0,0.04492]
[1763562323026,0.00328215,91170.0,91169.0,0.04492]
[1763562323529,0.04572215,91170.0,91169.0,0.04492]
[1763562323730,0.02420215,91170.0,91169.0,0.04492]
[1763562323933,0.00228215,91170.0,91169.0,0.04492]
[1763562324124,0.02420215,91170.0,91169.0,0.04492]
[1763562324317,0.00228215,91170.0,91169.0,0.04492]
[1763562325030,0.00328215,91170.0,91169.0,0.04492]
[1763562325234,0.00328215,91170.0,91155.0,0.1062]
[1763562325235,0.04444,91164.0,91155.0,0.3608]
[1763562325418,0.00328215,91170.0,91152.0,0.01395]
[1763562325419,0.00219799,91160.0,91152.0,0.01395]
[1763562325619,0.11197659,91160.0,91159.0,0.04265]
[1763562325835,0.02143,91141.0,91140.0,0.01395]
[1763562326022,0.0001645,91150.0,91149.0,0.04265]
[1763562326223,0.00236249,91150.0,91149.0,0.5132412]
[1763562327635,0.02379249,91150.0,91149.0,0.40345]
[1763562327821,0.02379249,91150.0,91149.0,0.40445]
[1763562328432,0.04444,91142.0,91141.0,0.3608]
[1763562328625,0.1542397,91142.0,91141.0,0.3608]
[1763562328935,0.15433535,91142.0,91141.0,0.3608]
[1763562329429,0.02152565,91142.0,91141.0,0.40345]
[1763562329626,9.565e-05,91142.0,91141.0,0.40345]
[1763562330729,0.1542408,91141.0,91140.0,0.0007327]
[1763562330928,0.1542481,91135.0,91134.0,0.00013303]
[1763562331336,0.04444,91135.0,91134.0,0.00013303]
[1763562331525,0.04444,91135.0,91134.0,0.02146303]
[1763562331725,0.02151,91132.0,91131.0,0.1524223]
[1763562331925,0.02151,91132.0,91131.0,0.04261]
[1763562332132,0.36089565,91142.0,91130.0,0.0007327]
[1763562332133,0.36089565,91142.0,91141.0,0.04261]
[1763562332326,9.565e-05,91142.0,91141.0,0.04261]
[1763562333036,0.04409565,91142.0,91141.0,0.04261]
[1763562333334,0.04409565,91142.0,91140.0,0.0134827]
[1763562333335,0.1538008,91141.0,91140.0,0.0007327]
[1763562333633,0.044,91127.0,91126.0,0.00027435]
[1763562333825,0.044,91110.0,91107.0,0.00012285]
[1763562334131,0.00783,91116.0,91100.0,0.0007327]
[1763562334337,0.02370799,91110.0,91109.0,0.04261]
[1763562334632,0.02370799,91110.0,91104.0,0.01275]
[1763562334633,0.0441646,91118.0,91117.0,0.04261]
[1763562334828,0.3609646,91118.0,91117.0,0.04261]
[1763562335033,0.38257629,91118.0,91117.0,0.04261]
[1763562335226,0.40506629,91118.0,91117.0,0.04261]
[1763562335527,0.36106629,91118.0,91117.0,0.04261]
[1763562336632,0.36106629,91118.0,91117.0,0.40341]
[1763562336832,0.00026629,91118.0,91117.0,0.40341]
[1763562337135,0.02177629,91118.0,91117.0,0.40341]
[1763562337430,0.00126629,91118.0,91117.0,0.40341]
[1763562338026,0.00026629,91118.0,91117.0,0.40341]
[1763562338841,0.04426629,91118.0,91117.0,0.40341]
[1763562339024,0.00026629,91118.0,91117.0,0.40341]
[1763562339839,0.044,91099.0,91098.0,0.09510285]
[1763562340029,0.3608,91099.0,91098.0,0.09510285]
[1763562340538,0.3608,91108.0,91098.0,0.09510285]
[1763562340539,0.3608,91108.0,91099.0,0.1524614]
[1763562340830,0.3608,91108.0,91107.0,0.04261]
[1763562341340,0.044,91099.0,91098.0,0.09510285]
[1763562341636,0.4048,91099.0,91098.0,0.05249285]
[1763562342337,0.40491729,91099.0,91098.0,0.03064336]
[1763562342638,0.40491729,91099.0,91098.0,0.02874156]
[1763562343355,0.40491729,91099.0,91098.0,0.07135156]
[1763562344038,0.40491729,91099.0,91098.0,0.05029156]
[1763562344432,0.40491729,91099.0,91098.0,0.07135156]
[1763562344828,0.36091729,91099.0,91098.0,0.07135156]
[1763562345028,0.35091729,91099.0,91098.0,0.07135156]
[1763562345622,0.31591729,91099.0,91098.0,0.07135156]
[1763562347935,0.3608,91117.0,91116.0,0.04261]
[1763562348135,0.044,91110.0,91109.0,0.12827]
[1763562348342,0.04619799,91110.0,91109.0,0.12827]
[1763562348526,0.04619799,91110.0,91098.0,0.38954156]
[1763562348835,0.3608,91101.0,91098.0,0.02874156]
[1763562349031,0.044,91099.0,91098.0,0.02874156]
[1763562349628,0.044,91099.0,91098.0,0.07135156]
[1763562349828,0.0023014,91100.0,91099.0,0.04261]
[1763562351029,0.00010337,91100.0,91099.0,0.04261]
[1763562351834,0.3608,91109.0,91108.0,0.1524506]
[1763562352033,0.3608,91120.0,91117.0,0.1524397]
[1763562352840,0.00028596,91118.0,91117.0,0.1524397]
[1763562353035,0.3608,91130.0,91129.0,0.1524252]
[1763562354228,0.3628,91130.0,91129.0,0.1524252]
[1763562354434,0.002,91130.0,91129.0,0.1524252]
[1763562355539,0.0001646,91139.0,91138.0,0.04261]
[1763562355747,0.0001646,91139.0,91138.0,0.14933]
[1763562356942,0.0001646,91139.0,91138.0,0.04261]
[1763562357147,0.0001646,91139.0,91138.0,0.14929]
[1763562357445,0.0441646,91139.0,91138.0,0.14929]
[1763562357645,0.0441646,91139.0,91138.0,0.04261]
[1763562357843,0.0441646,91139.0,91138.0,0.14929]
[1763562358357,0.0001646,91139.0,91138.0,0.14929]
[1763562358650,0.1099678,91139.0,91138.0,0.14929]
[1763562358844,0.0441646,91139.0,91138.0,0.14929]
[1763562359240,0.0001646,91139.0,91138.0,0.14929]
[1763562360535,0.3608,91148.0,91147.0,0.1524036]
[1763562360742,0.05986655,91156.0,91155.0,0.1523939]
[1763562361050,0.1097919,91149.0,91142.0,0.1097993]
[1763562361249,0.1097919,91149.0,91135.0,0.37155]
[1763562361250,0.044,91144.0,91135.0,0.3608]
[1763562361442,0.36299803,91140.0,91139.0,0.04261]
[1763562362242,0.3608,91148.0,91147.0,0.1097936]
[1763562362551,0.3608,91148.0,91147.0,0.1547236]
[1763562363448,0.0001646,91149.0,91148.0,0.04493]
[1763562364144,0.0001646,91149.0,91148.0,0.15157]
[1763562366758,0.0437046,91149.0,91148.0,0.15157]
[1763562367147,0.0222446,91149.0,91148.0,0.15157]
[1763562367352,0.00027423,91166.0,91165.0,0.1547019]
[1763562367547,0.38288,91183.0,91182.0,0.02211]
[1763562367747,0.04354,91181.0,91180.0,0.0021954]
[1763562367956,0.04354,91181.0,91180.0,0.1088354]
[1763562368147,0.1532926,91181.0,91180.0,0.0021954]
[1763562368346,0.1532926,91181.0,91180.0,0.1088354]
[1763562368654,0.3608,91183.0,91181.0,0.1097526]
[1763562368849,0.3608,91183.0,91182.0,0.04493]
[1763562369255,0.0008998,91190.0,91182.0,0.04493]
[1763562369256,0.0001645,91190.0,91189.0,0.154673]
[1763562369963,0.04354,91205.0,91204.0,0.1546539]
[1763562370154,0.04354,91205.0,91204.0,0.2612539]
[1763562370356,0.04354,91205.0,91204.0,0.1066]
[1763562370554,0.04354,91205.0,91204.0,0.12942]
[1763562370760,0.04354,91205.0,91204.0,0.15153]
[1763562371061,0.02208,91205.0,91204.0,0.15153]
[1763562371659,0.36107411,91206.0,91205.0,0.1097237]
[1763562371867,0.36107411,91206.0,91205.0,0.1546537]
[1763562372057,0.36107411,91206.0,91204.0,0.1066]
[1763562372058,0.04354,91205.0,91204.0,0.1066]
[1763562372257,0.04354,91205.0,91204.0,0.15153]
[1763562373258,0.04354,91201.0,91200.0,0.0021954]
[1763562373467,0.04354,91201.0,91200.0,0.1316154]
[1763562373674,0.04354,91201.0,91200.0,0.1537254]
[1763562374862,0.36107411,91206.0,91195.0,0.0001645]
[1763562374863,0.0007353,91200.0,91199.0,0.04493]
[1763562375066,0.0007353,91200.0,91199.0,0.15149]